bitfinex/quotes_BTCUSD_20250723
["timestamp","ask_amount","ask_price","bid_price","bid_amount"]
[1753294453288,0.52294245,118240.0,118230.0,0.34697701]
[1753294453499,0.51448515,118240.0,118230.0,0.35543495]
[1753294453710,0.52294252,118240.0,118230.0,0.34697701]
[1753294453921,0.51448515,118240.0,118230.0,0.34697701]
[1753294454133,0.51448515,118240.0,118230.0,0.35543502]
[1753294454383,0.51448515,118240.0,118230.0,0.36389296]
[1753294454619,0.52294245,118240.0,118230.0,0.35543502]
[1753294454856,0.51448515,118240.0,118230.0,0.36389296]
[1753294455865,0.51448515,118240.0,118230.0,0.37235083]
[1753294456071,0.41309361,118240.0,118230.0,0.73676264]
[1753294456318,0.41309361,118240.0,118230.0,0.38080798]
[1753294456511,0.41309361,118240.0,118230.0,0.73676264]
[1753294456728,0.43000756,118240.0,118230.0,0.37235047]
[1753294456936,0.43000756,118240.0,118230.0,0.7198474]
[1753294457361,0.41791395,118240.0,118230.0,0.7198474]
[1753294457572,0.41791395,118240.0,118230.0,0.72830513]
[1753294458007,0.41791381,118240.0,118230.0,0.73676279]
[1753294458483,0.40945673,118240.0,118230.0,0.37235047]
[1753294458702,0.41791367,118240.0,118230.0,0.38080813]
[1753294458994,0.40945673,118240.0,118230.0,0.38080813]
[1753294459215,0.42189276,118240.0,118230.0,0.74522888]
[1753294459424,0.43034963,118240.0,118230.0,0.74522888]
[1753294460034,0.44726373,118240.0,118230.0,0.71985591]
[1753294460228,0.44726365,118240.0,118230.0,0.72831371]
[1753294460656,0.43880657,118240.0,118230.0,0.73677144]
[1753294460826,0.43880657,118240.0,118230.0,0.7452291]
[1753294461034,0.43880657,118240.0,118230.0,0.73677144]
[1753294461228,0.41343603,118240.0,118230.0,0.73677116]
[1753294461438,0.41343603,118240.0,118230.0,0.74522874]
[1753294461848,0.01343603,118240.0,118230.0,0.74522874]
[1753294463497,0.02189276,118240.0,118230.0,0.74522874]
[1753294464775,0.03034963,118240.0,118230.0,0.73677116]
[1753294464978,0.03880664,118240.0,118230.0,0.71139811]
[1753294465181,0.04726372,118240.0,118230.0,0.72831378]
[1753294465411,0.03880664,118240.0,118230.0,0.73677144]
[1753294465608,0.03034963,118240.0,118230.0,0.73677144]
[1753294465763,0.03034963,118240.0,118230.0,0.74522902]
[1753294465979,0.03880664,118240.0,118230.0,0.74522902]
[1753294466254,0.0472638,118240.0,118230.0,0.72831378]
[1753294466495,0.21641179,118240.0,118230.0,0.7029401]
[1753294466700,0.25868627,118240.0,118230.0,0.71139811]
[1753294467151,0.25868627,118240.0,118230.0,0.71985605]
[1753294467364,0.20795492,118240.0,118230.0,0.71139811]
[1753294467576,0.20795492,118240.0,118230.0,0.71139804]
[1753294468395,0.21641229,118240.0,118230.0,0.71985591]
[1753294468881,0.03034984,118240.0,118230.0,0.72831371]
[1753294469085,0.03034977,118240.0,118230.0,0.73677129]
[1753294469471,0.03034977,118240.0,118230.0,0.73677137]
[1753294469973,0.03034977,118240.0,118230.0,0.7029401]
[1753294470173,0.04726415,118240.0,118230.0,0.71139804]
[1753294470356,0.04726408,118240.0,118230.0,0.71139804]
[1753294470866,0.03880685,118240.0,118230.0,0.71985591]
[1753294471090,0.03034977,118240.0,118230.0,0.73677122]
[1753294471287,0.0303497,118240.0,118230.0,0.72831364]
[1753294471496,0.0303497,118240.0,118230.0,0.73677122]
[1753294471656,0.03880671,118240.0,118230.0,0.7367713]
[1753294471855,0.01343603,118240.0,118230.0,0.74522888]
[1753294473249,0.0303497,118240.0,118230.0,0.74522888]
[1753294473463,0.0303497,118240.0,118230.0,0.7367713]
[1753294473875,0.0303497,118240.0,118230.0,0.74522888]
[1753294474243,0.03880678,118240.0,118230.0,0.72831364]
[1753294474452,0.0303497,118240.0,118230.0,0.7367713]
[1753294474655,0.02189276,118240.0,118230.0,0.74522888]
[1753294475075,0.02189276,118240.0,118230.0,0.3808077]
[1753294475274,0.03880657,118240.0,118230.0,0.7367713]
[1753294475835,0.03034956,118240.0,118230.0,0.73677122]
[1753294476043,0.0388065,118240.0,118230.0,0.73677122]
[1753294477326,0.0388065,118240.0,118230.0,0.72831364]
[1753294477543,0.04726358,118240.0,118230.0,0.7367713]
[1753294478326,0.0388065,118240.0,118230.0,0.74522888]
[1753294478587,0.01343603,118240.0,118230.0,0.61158888]
[1753294478790,0.001,118240.0,118230.0,1.10865006]
[1753294479375,0.20294333,118260.0,118250.0,0.20858984]
[1753294479736,0.10984405,118260.0,118250.0,0.72458411]
[1753294479949,0.11829999,118260.0,118250.0,0.72458411]
[1753294480164,0.11829999,118260.0,118250.0,0.7191476]
[1753294480604,0.11829999,118260.0,118250.0,0.72760411]
[1753294480726,0.11929999,118260.0,118250.0,0.7191476]
[1753294480935,0.30049591,118260.0,118250.0,0.70223437]
[1753294481231,0.30049591,118260.0,118250.0,0.33781319]
[1753294481404,0.1775897,118250.0,118240.0,0.39562118]
[1753294481655,0.18606209,118240.0,118230.0,0.18534892]
[1753294481863,0.17761989,118230.0,118220.0,0.20438844]
[1753294482069,0.1881279,118230.0,118220.0,0.13309233]
[1753294482242,0.1911279,118230.0,118220.0,0.13309233]
[1753294482450,0.9080825,118230.0,118220.0,0.00049233]
[1753294482663,1.3050527,118230.0,118220.0,0.00049233]
[1753294482871,1.2450527,118230.0,118220.0,0.00049233]
[1753294484882,1.2450527,118230.0,118220.0,0.00349233]
[1753294485121,0.88063152,118230.0,118220.0,0.00049233]
[1753294485327,0.02537984,118200.0,118190.0,0.19346295]
[1753294485533,0.00845973,118200.0,118190.0,0.7365079]
[1753294485739,0.18612267,118210.0,118200.0,0.20212469]
[1753294485956,0.27059997,118210.0,118200.0,0.19870482]
[1753294486161,0.27059997,118210.0,118200.0,0.20716484]
[1753294486773,0.67059997,118210.0,118200.0,0.19870482]
[1753294486980,0.65368115,118210.0,118200.0,0.02104]
[1753294487395,0.65573115,118210.0,118200.0,0.02104]
[1753294487801,0.65573115,118210.0,118200.0,0.00202]
[1753294488411,0.00049226,118230.0,118210.0,0.20994944]
[1753294488645,0.00049226,118230.0,118220.0,0.72116328]
[1753294488646,0.03432346,118230.0,118220.0,0.72116328]
[1753294489031,0.0427814,118230.0,118220.0,0.72962165]
[1753294489688,0.03532339,118230.0,118220.0,0.72116335]
[1753294489974,0.0447814,118230.0,118220.0,0.72962172]
[1753294490401,0.0447814,118230.0,118220.0,0.72116335]
[1753294490402,0.19702781,118230.0,118220.0,0.72116335]
[1753294491018,0.19602781,118230.0,118220.0,0.72962172]
[1753294491435,0.19702781,118230.0,118220.0,0.72962172]
[1753294491842,0.02786558,118230.0,118220.0,0.73808002]
[1753294492088,0.19702738,118230.0,118220.0,0.72962172]
[1753294493166,0.20548539,118230.0,118220.0,0.72962172]
[1753294493609,0.21394348,118230.0,118220.0,0.72962172]
[1753294493857,0.02786601,118230.0,118220.0,0.72962172]
[1753294494064,0.02946985,118230.0,118220.0,0.72962172]
[1753294494288,0.02946985,118230.0,118220.0,0.73808002]
[1753294495148,0.02101148,118230.0,118220.0,0.73808002]
[1753294495337,0.02946942,118230.0,118220.0,0.73808002]
[1753294495567,0.02101148,118230.0,118220.0,0.73808002]
[1753294495783,0.02786551,118230.0,118220.0,0.73808002]
[1753294496003,0.00249226,118230.0,118220.0,0.73808002]
[1753294496240,0.011564,118260.0,118250.0,0.19450229]
[1753294496583,0.82916674,118280.0,118270.0,0.18601482]
[1753294496584,0.15845437,118280.0,118270.0,0.18601482]
[1753294496685,0.34445332,118280.0,118270.0,0.16910459]
[1753294496923,0.01404565,118280.0,118270.0,0.68526096]
[1753294497156,0.02044959,118280.0,118270.0,0.70076096]
[1753294497391,0.03735775,118280.0,118270.0,0.33617468]
[1753294497617,0.22496069,118280.0,118270.0,0.01752]
[1753294497870,0.00845515,118270.0,118260.0,0.31021476]
[1753294498127,0.00845465,118270.0,118260.0,0.34766543]
[1753294498354,0.39647295,118280.0,118270.0,0.18601475]
[1753294498588,0.59937999,118280.0,118270.0,0.19648955]
[1753294498821,0.02044959,118280.0,118270.0,0.22044427]
[1753294499054,0.02890367,118280.0,118270.0,0.58059583]
[1753294499273,0.02890367,118280.0,118270.0,0.22446427]
[1753294499488,0.02890367,118280.0,118270.0,0.58059583]
[1753294499916,0.03735797,118280.0,118270.0,0.58059583]
[1753294500140,0.04581241,118280.0,118270.0,0.58059583]
[1753294500378,0.03735797,118280.0,118270.0,0.21600955]
[1753294500581,0.23965891,118280.0,118270.0,0.00302]
[1753294500794,0.02249973,118280.0,118270.0,0.55362089]
[1753294501017,0.01199565,118280.0,118270.0,0.57214089]
[1753294501273,0.00014762,118280.0,118270.0,0.58814089]
[1753294502152,0.00014762,118280.0,118270.0,0.58714089]
[1753294502575,0.00014762,118280.0,118270.0,0.59014089]
[1753294502787,0.00014762,118280.0,118270.0,0.59214089]
[1753294503453,0.00014762,118280.0,118270.0,0.67661819]
[1753294504990,0.00860149,118280.0,118270.0,0.80917819]
[1753294505201,0.00014762,118280.0,118270.0,0.80917819]
[1753294505670,0.19460037,118280.0,118270.0,0.21909974]
[1753294505882,0.19460037,118280.0,118270.0,0.32559482]
[1753294505883,0.19661037,118280.0,118270.0,0.32559482]
[1753294506301,0.19661037,118280.0,118270.0,0.35880449]
[1753294506514,0.02551008,118280.0,118270.0,0.72647077]
[1753294506736,0.0339643,118280.0,118270.0,0.72647077]
[1753294506960,0.20305459,118280.0,118270.0,0.70956125]
[1753294507171,0.19460065,118280.0,118270.0,0.70110638]
[1753294507386,0.19460065,118280.0,118270.0,0.70956125]
[1753294507593,0.02551036,118280.0,118270.0,0.71801605]
[1753294507793,0.20305516,118280.0,118270.0,0.71801605]
[1753294507952,0.19460101,118280.0,118270.0,0.70110638]
[1753294508161,0.19460101,118280.0,118270.0,0.70956132]
[1753294508642,0.17970242,118280.0,118270.0,0.68172652]
[1753294508924,0.17970242,118280.0,118270.0,0.49571156]
[1753294509355,0.22280128,118280.0,118270.0,0.00702]
[1753294509637,0.22592128,118280.0,118270.0,0.005]
[1753294509832,0.31039858,118280.0,118270.0,0.005]
[1753294510040,0.5086476,118280.0,118270.0,0.005]
[1753294510244,0.9986476,118280.0,118270.0,0.005]
[1753294510690,0.9986476,118280.0,118270.0,0.002]
[1753294511538,0.9986476,118280.0,118270.0,0.004]
[1753294511753,0.18603027,118260.0,118250.0,0.13256]
[1753294511954,0.18804027,118260.0,118250.0,0.13256]
[1753294512170,0.20839165,118260.0,118250.0,0.13256]
[1753294512597,0.19116027,118260.0,118250.0,0.13256]
[1753294513792,0.19116027,118260.0,118250.0,0.13456]
[1753294516975,0.59116027,118260.0,118250.0,0.1367]
[1753294517406,0.59116027,118260.0,118250.0,0.1377]
[1753294517613,0.59116027,118260.0,118250.0,0.13556]
[1753294520577,0.59116027,118260.0,118250.0,0.31528984]
[1753294520937,0.01691138,118260.0,118250.0,0.7324705]
[1753294521159,0.19448564,118260.0,118250.0,0.72401435]
[1753294521360,0.02536675,118260.0,118250.0,0.73247065]
[1753294521539,0.02536675,118260.0,118250.0,0.7409268]
[1753294521982,0.02536668,118260.0,118250.0,0.7409268]
[1753294523136,0.73602744,118270.0,118260.0,0.19448607]
[1753294523385,0.74448266,118270.0,118260.0,0.56060212]
[1753294523603,0.74448266,118270.0,118260.0,0.56368212]
[1753294523604,0.34448266,118270.0,118260.0,0.56368212]
[1753294524036,0.15845472,118270.0,118260.0,0.56368212]
[1753294524255,0.18381947,118270.0,118260.0,0.57213777]
[1753294524469,0.43095664,118270.0,118260.0,0.20447056]
[1753294524629,0.43407664,118270.0,118260.0,0.20447056]
[1753294524869,0.42562184,118270.0,118260.0,0.17971483]
[1753294525280,0.34114454,118270.0,118260.0,0.18817056]
[1753294526044,0.34114454,118270.0,118260.0,0.17971483]
[1753294526237,0.34114454,118270.0,118260.0,0.18817063]
[1753294526595,0.34114454,118270.0,118260.0,0.19662628]
[1753294526866,0.16891952,118270.0,118260.0,0.2300373]
[1753294527066,0.00014762,118280.0,118270.0,0.23562434]
[1753294527267,0.01705571,118280.0,118270.0,0.60188819]
[1753294527489,0.02550986,118280.0,118270.0,0.60496819]
[1753294527609,0.02550993,118280.0,118270.0,0.60496819]
[1753294527815,0.0339643,118280.0,118270.0,0.60496819]
[1753294528018,0.04241881,118280.0,118270.0,0.59651347]
[1753294528227,0.0339643,118280.0,118270.0,0.60496819]
[1753294528453,0.02550993,118280.0,118270.0,0.60496819]
[1753294528653,0.0339643,118280.0,118270.0,0.60496819]
[1753294528852,0.20133442,118280.0,118270.0,0.54168359]
[1753294529054,0.24060391,118280.0,118270.0,0.5501386]
[1753294529258,0.02218592,118280.0,118270.0,0.22146427]
[1753294529466,0.02551029,118280.0,118270.0,0.24074427]
[1753294529928,0.02551029,118280.0,118270.0,0.59640012]
[1753294530147,0.00860149,118280.0,118270.0,0.59740012]
[1753294530363,0.00014762,118280.0,118270.0,0.59740012]
[1753294530789,0.00014762,118280.0,118270.0,0.24174427]
[1753294530992,0.01705564,118280.0,118270.0,0.59740012]
[1753294531198,0.00014762,118280.0,118270.0,0.72992012]
[1753294531424,0.0170555,118280.0,118270.0,0.72992012]
[1753294531633,0.02550965,118280.0,118270.0,0.72992012]
[1753294532047,0.03396395,118280.0,118270.0,0.72992012]
[1753294532253,0.02550965,118280.0,118270.0,0.72992012]
[1753294532464,0.0170555,118280.0,118270.0,0.72992012]
[1753294532681,0.02550958,118280.0,118270.0,0.72992012]
[1753294533150,0.02550958,118280.0,118270.0,0.73192012]
[1753294533534,0.03596373,118280.0,118270.0,0.72038525]
[1753294533699,0.0190555,118280.0,118270.0,0.72038525]
[1753294533911,0.0170555,118280.0,118270.0,0.72038525]
[1753294534240,0.03396373,118280.0,118270.0,0.72334525]
[1753294534437,0.04241803,118280.0,118270.0,0.57391559]
[1753294534663,0.27069349,118280.0,118270.0,0.31521974]
[1753294534869,0.26908965,118280.0,118270.0,0.32998948]
[1753294535269,0.01905607,118280.0,118270.0,0.34707955]
[1753294535473,0.02751044,118280.0,118270.0,0.35553427]
[1753294536019,0.02551001,118280.0,118270.0,0.71119012]
[1753294536198,0.02551001,118280.0,118270.0,0.73005012]
[1753294536442,0.20505467,118280.0,118270.0,0.7027354]
[1753294537411,0.20505467,118280.0,118270.0,0.7111902]
[1753294537615,0.03596438,118280.0,118270.0,0.71964492]
[1753294538238,0.01705564,118280.0,118270.0,0.73800492]
[1753294538459,0.02550986,118280.0,118270.0,0.73800492]
[1753294538683,0.01705564,118280.0,118270.0,0.73800492]
[1753294538894,0.01705557,118280.0,118270.0,0.73800492]
[1753294539097,0.00014762,118280.0,118270.0,0.73800492]
[1753294540509,0.19460058,118280.0,118270.0,0.68878559]
[1753294540866,0.03062022,118280.0,118270.0,0.68763525]
[1753294541022,0.02216585,118280.0,118270.0,0.70333525]
[1753294541269,0.20505509,118280.0,118270.0,0.70333525]
[1753294541444,0.01060163,118280.0,118270.0,0.70333525]
[1753294541653,0.00014762,118280.0,118270.0,0.72239525]
[1753294541993,0.00860156,118280.0,118270.0,0.72239525]
[1753294542402,0.00014762,118280.0,118270.0,0.72239525]
[1753294542684,0.00860149,118280.0,118270.0,0.72239525]
[1753294542883,0.0170555,118280.0,118270.0,0.58987525]
[1753294543096,0.02550965,118280.0,118270.0,0.72235525]
[1753294543305,0.01705557,118280.0,118270.0,0.72235525]
[1753294543524,0.03396416,118280.0,118270.0,0.72235525]
[1753294543741,0.23132231,118280.0,118270.0,0.58142053]
[1753294543999,0.22797887,118280.0,118270.0,0.15118]
[1753294544201,0.22797887,118280.0,118270.0,0.31303981]
[1753294544715,0.22797887,118280.0,118270.0,0.003]
[1753294544964,0.46818195,118280.0,118270.0,0.003]
[1753294545170,0.86818195,118280.0,118270.0,0.003]
[1753294545373,0.83991409,118280.0,118270.0,0.003]
[1753294545795,0.40214762,118280.0,118270.0,0.54666039]
[1753294546019,0.42551022,118280.0,118270.0,0.57397511]
[1753294546227,0.40014762,118280.0,118270.0,0.58937511]
[1753294546919,0.00860149,118280.0,118270.0,0.58937511]
[1753294547177,0.00860156,118280.0,118270.0,0.58641511]
[1753294547419,0.00014762,118280.0,118270.0,0.58641511]
[1753294547963,0.00375146,118280.0,118270.0,0.58641511]
[1753294548196,0.00214762,118280.0,118270.0,0.58641511]
[1753294548404,0.00214762,118280.0,118270.0,0.23075926]
[1753294548587,0.00214762,118280.0,118270.0,0.58641511]
[1753294548826,0.00014762,118280.0,118270.0,0.58641511]
[1753294549055,0.00860156,118280.0,118270.0,0.58641511]
[1753294549233,0.00860149,118280.0,118270.0,0.594934]
[1753294549464,0.00014762,118280.0,118270.0,0.594934]
[1753294550526,0.00014762,118280.0,118270.0,0.597894]
[1753294551489,0.00014762,118280.0,118270.0,0.96206874]
[1753294551758,0.00014762,118280.0,118270.0,1.04654604]
[1753294551981,0.00014762,118280.0,118270.0,1.38654604]
[1753294552655,0.00014762,118280.0,118270.0,1.38554604]
[1753294552907,0.00014762,118280.0,118270.0,1.38354604]
[1753294553149,0.00014762,118280.0,118270.0,1.38754604]
[1753294553385,0.00014762,118280.0,118270.0,1.01362288]
[1753294553797,0.00014762,118280.0,118270.0,1.01862288]
[1753294554451,0.06762754,118310.0,118300.0,0.22662008]
[1753294554452,0.07879448,118310.0,118300.0,0.22662008]
[1753294554636,0.07879448,118310.0,118300.0,0.7165164]
[1753294554843,0.06762754,118310.0,118300.0,0.7165164]
[1753294555022,0.06762754,118310.0,118300.0,0.7194764]
[1753294556092,0.06762754,118310.0,118300.0,0.74502636]
[1753294556326,0.06762754,118310.0,118300.0,0.74602636]
[1753294556605,0.09297906,118330.0,118320.0,0.19438723]
[1753294556883,0.10518143,118330.0,118320.0,0.32682737]
[1753294557156,0.10518143,118330.0,118320.0,0.31837608]
[1753294557157,0.50829143,118330.0,118320.0,0.31837608]
[1753294557428,0.66725614,118330.0,118320.0,0.30992471]
[1753294557715,0.20283866,118320.0,118310.0,0.1774869]
[1753294557992,0.20283866,118320.0,118310.0,0.31837898]
[1753294558255,0.19949758,118320.0,118310.0,0.31837898]
[1753294558763,0.18259478,118320.0,118310.0,0.16903468]
[1753294559051,0.17414313,118320.0,118310.0,0.13244]
[1753294559243,0.17414313,118320.0,118300.0,0.00845308]
[1753294559244,0.19440415,118310.0,118300.0,0.00845308]
[1753294559450,0.01690437,118310.0,118300.0,0.31840743]
[1753294559659,0.02535617,118310.0,118300.0,0.34425008]
[1753294559865,0.01690366,118310.0,118300.0,0.72688898]
[1753294560296,0.2028553,118310.0,118300.0,0.72688898]
[1753294560513,0.21130767,118310.0,118300.0,0.70702375]
[1753294560716,0.20285595,118310.0,118300.0,0.70702375]
[1753294560896,0.23048453,118310.0,118300.0,0.65692802]
[1753294561053,0.23048453,118310.0,118300.0,0.67483404]
[1753294561466,0.187952,118310.0,118300.0,0.68527676]
[1753294562080,0.187952,118310.0,118300.0,0.70218199]
[1753294562281,0.187952,118310.0,118300.0,0.71758199]
[1753294562478,0.187952,118310.0,118300.0,0.70912941]
[1753294562800,0.01890423,118310.0,118300.0,0.71758199]
[1753294563011,0.02735652,118310.0,118300.0,0.71758199]
[1753294563214,0.19640393,118310.0,118300.0,0.71758199]
[1753294563427,0.00845179,118310.0,118300.0,0.73649199]
[1753294563597,0.19671082,118320.0,118310.0,0.20135164]
[1753294563797,0.02767741,118320.0,118310.0,0.56724983]
[1753294564276,0.20721219,118320.0,118310.0,0.35744632]
[1753294564492,0.18595193,118310.0,118300.0,0.70984397]
[1753294564706,0.01895366,118310.0,118300.0,0.73411207]
[1753294564878,0.02740567,118310.0,118300.0,0.73311207]
[1753294565080,0.01690359,118310.0,118300.0,0.73311207]
[1753294565295,0.01690359,118310.0,118300.0,0.73622207]
[1753294565729,0.0253556,118310.0,118300.0,0.73622207]
[1753294566682,0.00845172,118310.0,118300.0,0.73622207]
[1753294566869,0.20822197,118320.0,118310.0,0.19440365]
[1753294567074,0.21027197,118320.0,118310.0,0.19440365]
[1753294567275,0.21872362,118320.0,118310.0,0.18595178]
[1753294567484,0.21027233,118320.0,118310.0,0.18595185]
[1753294567690,0.21027233,118320.0,118310.0,0.19440393]
[1753294568115,0.03712827,118320.0,118310.0,0.2209758]
[1753294568328,0.21461291,118320.0,118310.0,0.2209758]
[1753294568528,0.22306456,118320.0,118310.0,0.22097594]
[1753294568742,0.04762978,118320.0,118310.0,0.22942781]
[1753294568944,0.05608136,118320.0,118310.0,0.22097594]
[1753294569167,0.20821212,118320.0,118310.0,0.22097594]
[1753294570116,0.19976075,118320.0,118310.0,0.18716741]
[1753294570450,0.18285759,118320.0,118310.0,0.00202]
[1753294570613,0.17749963,118310.0,118300.0,0.69838654]
[1753294570829,0.17749963,118310.0,118300.0,0.32682052]
[1753294571037,0.01050187,118310.0,118300.0,0.34574575]
[1753294571246,0.01690395,118310.0,118300.0,0.73428207]
[1753294571454,0.20077068,118320.0,118310.0,0.17749963]
[1753294571671,0.03917863,118320.0,118310.0,0.59030205]
[1753294571878,0.21461341,118320.0,118310.0,0.58185018]
[1753294572073,0.20616219,118320.0,118310.0,0.5583981]
[1753294572284,0.19876075,118320.0,118310.0,0.5433981]
[1753294572513,0.02972762,118320.0,118310.0,0.57630191]
[1753294572921,0.02972726,118320.0,118310.0,0.57630191]
[1753294573168,0.02867676,118320.0,118310.0,0.57941191]
[1753294573374,0.03712813,118320.0,118310.0,0.6040655]
[1753294574020,0.02867676,118320.0,118310.0,0.6040655]
[1753294574875,0.03712813,118320.0,118310.0,0.6040655]
[1753294575022,0.04557964,118320.0,118310.0,0.6040655]
[1753294575223,0.03712813,118320.0,118310.0,0.6040655]
[1753294575435,0.02867676,118320.0,118310.0,0.6040655]
[1753294575646,0.02867683,118320.0,118310.0,0.6040655]
[1753294576641,0.0371282,118320.0,118310.0,0.6040655]
[1753294578323,0.02022554,118320.0,118310.0,0.6040655]
[1753294578516,0.02867676,118320.0,118310.0,0.6040655]
[1753294578921,0.01177446,118320.0,118310.0,0.6040655]
[1753294579132,0.02022561,118320.0,118310.0,0.6040655]
[1753294579341,0.1774997,118310.0,118290.0,0.20991726]
[1753294579571,0.01050287,118300.0,118290.0,0.72508454]
[1753294579797,0.01050272,118300.0,118290.0,0.60963134]
[1753294580002,0.01050287,118300.0,118290.0,0.74199134]
[1753294580212,0.01050279,118300.0,118290.0,0.74199134]
[1753294580470,0.19647044,118300.0,118290.0,0.73453805]
[1753294580692,0.02740874,118300.0,118290.0,0.61063142]
[1753294580914,0.01690402,118310.0,118300.0,0.22541994]
[1753294581117,0.19440315,118310.0,118300.0,0.58286741]
[1753294581363,0.19440365,118310.0,118300.0,0.58597741]
[1753294581610,0.19440365,118310.0,118300.0,0.59132013]
[1753294582306,0.19440365,118310.0,118300.0,0.58386741]
[1753294582774,0.01690402,118310.0,118300.0,0.59332013]
[1753294582990,0.01690366,118310.0,118300.0,0.60488271]
[1753294583119,0.20285537,118310.0,118300.0,0.59643013]
[1753294583348,0.1990428,118310.0,118300.0,0.59643013]
[1753294583535,0.1990428,118310.0,118300.0,0.59332013]
[1753294583713,0.2010928,118310.0,118300.0,0.59332013]
[1753294583935,0.20490637,118310.0,118300.0,0.58486741]
[1753294584160,0.18260978,118310.0,118300.0,0.002]
[1753294584381,0.29818708,118310.0,118300.0,0.36587991]
[1753294584608,0.36581462,118310.0,118300.0,0.13432]
[1753294585123,0.27288495,118310.0,118300.0,0.13432]
[1753294585308,0.17415741,118310.0,118300.0,0.68416756]
[1753294585683,0.17415741,118310.0,118300.0,0.6841677]
[1753294586775,0.17415741,118310.0,118300.0,0.49819991]
[1753294586980,0.17415741,118310.0,118300.0,0.36587991]
[1753294587119,0.29043471,118310.0,118300.0,0.13432]
[1753294587298,0.42275471,118310.0,118300.0,0.002]
[1753294587892,0.33827741,118310.0,118300.0,0.002]
[1753294590338,0.42275471,118310.0,118300.0,0.002]
[1753294590920,0.57275471,118310.0,118300.0,0.002]
[1753294591366,0.59020373,118310.0,118300.0,0.002]
[1753294591999,0.59020373,118310.0,118300.0,0.001]
[1753294592229,0.35931464,118300.0,118290.0,0.13232]
[1753294592370,0.18598293,118290.0,118280.0,0.70715328]
[1753294592596,0.18803293,118290.0,118280.0,0.70917328]
[1753294592779,0.18803315,118290.0,118280.0,0.69226461]
[1753294592973,0.17957978,118290.0,118280.0,0.51471991]
[1753294593211,0.22875228,118290.0,118280.0,0.36387991]
[1753294593419,0.1775448,118280.0,118270.0,0.57423958]
[1753294593632,0.1795448,118280.0,118270.0,0.34483967]
[1753294593836,0.0104543,118280.0,118270.0,0.72562939]
[1753294594048,0.01890852,118280.0,118270.0,0.73408411]
[1753294594256,0.01690852,118280.0,118270.0,0.73408411]
[1753294594451,0.01690852,118280.0,118270.0,0.73730411]
[1753294594657,0.01690816,118280.0,118270.0,0.73730411]
[1753294594859,0.02536253,118280.0,118270.0,0.73730411]
[1753294595268,0.01690816,118280.0,118270.0,0.73730411]
[1753294595472,0.22967228,118290.0,118280.0,0.17754466]
[1753294595473,0.18895336,118290.0,118280.0,0.17754466]
[1753294595687,0.19095336,118290.0,118280.0,0.54358457]
[1753294596131,0.18798336,118290.0,118280.0,0.56049295]
[1753294596351,0.18598336,118290.0,118280.0,0.58343887]
[1753294596550,0.18798336,118290.0,118280.0,0.58343887]
[1753294596759,0.17952978,118290.0,118280.0,0.57498457]
[1753294596967,0.57404599,118290.0,118280.0,0.00216]
[1753294597199,0.57404599,118290.0,118280.0,0.36387991]
[1753294597409,0.25852329,118290.0,118280.0,0.36387991]
[1753294597617,0.1775448,118280.0,118270.0,0.69841452]
[1753294597824,0.1795448,118280.0,118270.0,0.7005748]
[1753294598250,0.1795448,118280.0,118270.0,0.69211972]
[1753294598455,0.1825148,118280.0,118270.0,0.49835991]
[1753294598662,0.17755967,118270.0,118260.0,0.58260827]
[1753294599001,0.17755967,118270.0,118260.0,0.72565154]
[1753294599002,0.18801468,118270.0,118260.0,0.72565154]
[1753294599126,0.20492477,118270.0,118260.0,0.72565154]
[1753294599340,0.20292477,118270.0,118260.0,0.73410705]
[1753294599936,0.20292477,118270.0,118260.0,0.72765161]
[1753294600375,0.1944699,118270.0,118260.0,0.72765161]
[1753294600778,0.18601489,118270.0,118260.0,0.72765161]
[1753294601540,0.18601489,118270.0,118260.0,0.72965161]
[1753294601769,0.18801489,118270.0,118260.0,0.72119596]
[1753294601970,0.18801489,118270.0,118260.0,0.73810705]
[1753294602177,0.18801489,118270.0,118260.0,0.72965161]
[1753294602559,0.18801489,118270.0,118260.0,0.73810712]
[1753294603295,0.18601489,118270.0,118260.0,0.73810712]
[1753294603699,0.18601489,118270.0,118260.0,0.72965161]
[1753294603912,0.01690995,118270.0,118260.0,0.73810719]
[1753294604141,0.00845458,118270.0,118260.0,0.72965068]
[1753294604386,0.4109471,118280.0,118270.0,0.23452434]
[1753294604661,0.406509,118300.0,118290.0,0.18598336]
[1753294604903,0.28089767,118300.0,118290.0,0.67584969]
[1753294605138,0.69184393,118300.0,118290.0,0.69275692]
[1753294605375,0.67493827,118300.0,118290.0,0.68430334]
[1753294605633,0.67790827,118300.0,118290.0,0.68430341]
[1753294605887,0.66945526,118300.0,118290.0,0.68430341]
[1753294606160,0.67145526,118300.0,118290.0,0.69275699]
[1753294606433,0.67145526,118300.0,118290.0,0.68430341]
[1753294606937,0.67145526,118300.0,118290.0,0.70121064]
[1753294607152,0.02985178,118300.0,118290.0,0.74146365]
[1753294607389,0.02985178,118300.0,118290.0,0.74468365]
[1753294607614,0.20736627,118300.0,118290.0,0.74468373]
[1753294607856,0.20736627,118300.0,118290.0,0.73301036]
[1753294607857,0.20091369,118300.0,118290.0,0.73301036]
[1753294608116,0.18400796,118300.0,118290.0,0.51351991]
[1753294608365,0.18697796,118300.0,118290.0,0.49831991]
[1753294608583,0.18697796,118300.0,118290.0,0.67584969]
[1753294608816,0.04327493,118300.0,118290.0,0.70966401]
[1753294609048,0.22727193,118300.0,118290.0,0.72455706]
[1753294609282,0.2103667,118300.0,118290.0,0.71610341]
[1753294609493,0.2103667,118300.0,118290.0,0.73301057]
[1753294609716,0.20191391,118300.0,118290.0,0.53011991]
[1753294609956,0.19346104,118300.0,118290.0,0.51351991]
[1753294611095,0.59346104,118300.0,118290.0,0.51351991]
[1753294611752,0.59346104,118300.0,118290.0,0.38123991]
[1753294611971,0.59643104,118300.0,118290.0,0.49827991]
[1753294613124,0.17752971,118290.0,118280.0,0.20864473]
[1753294613369,0.18798329,118290.0,118280.0,0.71321901]
[1753294613585,0.18798329,118290.0,118280.0,0.71537901]
[1753294614755,0.18798329,118290.0,118280.0,0.59159331]
[1753294614975,0.18798329,118290.0,118280.0,0.1655]
[1753294615185,0.18599895,118280.0,118270.0,0.58431459]
[1753294615410,0.19096895,118280.0,118270.0,0.51131991]
[1753294615635,0.19096895,118280.0,118270.0,0.49611991]
[1753294616785,0.19096895,118280.0,118270.0,0.49711991]
[1753294617016,0.19096895,118280.0,118270.0,0.49811991]
[1753294617505,0.18251473,118280.0,118270.0,0.6672245]
[1753294617731,0.18251473,118280.0,118270.0,0.67567972]
[1753294617958,0.18251473,118280.0,118270.0,0.69097972]
[1753294618196,0.17406029,118280.0,118270.0,0.51557991]
[1753294618433,0.17406029,118280.0,118270.0,0.69313972]
[1753294618967,0.17406029,118280.0,118270.0,0.51557991]
[1753294619462,0.17406029,118280.0,118270.0,0.69313972]
[1753294620374,0.17954473,118280.0,118270.0,0.7015948]
[1753294620594,0.00845401,118280.0,118270.0,0.73410454]
[1753294620824,0.00845401,118280.0,118270.0,0.74577926]
[1753294621089,0.01690816,118280.0,118270.0,0.74577926]
[1753294621317,0.00845401,118280.0,118270.0,0.74577926]
[1753294621557,0.58598336,118290.0,118280.0,0.23440704]